fUSD/lending_fUSD_20241230
["ID","MTS","AMOUNT","RATE_DAILY","PERIOD"]
[347178725,1735552240717,-500.0,0.00013698,2]
[347178726,1735552240727,-1053.39,0.00013698,2]
[347178727,1735552240736,-500.0,0.00013698,2]
[347178728,1735552240746,-502.14302375,0.00013698,2]
[347178729,1735552240755,-500.83599897,0.00013698,2]
[347178730,1735552240765,-500.0,0.00013698,2]
[347178731,1735552240774,-500.0,0.00013698,2]
[347178732,1735552240783,-505.46300134,0.00013698,2]
[347178733,1735552240793,-500.0,0.00013698,2]
[347178734,1735552240802,-505.78667254,0.00013698,2]
[347178735,1735552240812,-500.0,0.00013698,2]
[347178736,1735552240821,-500.0,0.00013698,2]
[347178737,1735552240830,-500.0,0.00013698,2]
[347178738,1735552240840,-574.17,0.00013698,2]
[347178739,1735552240849,-500.0,0.00013698,2]
[347178740,1735552240859,-500.0,0.00013698,2]
[347178741,1735552240868,-500.0,0.00013698,2]
[347178742,1735552240877,-268.96649208,0.00013698,2]
[347178743,1735552240887,-500.0,0.00013698,2]
[347178744,1735552240898,-500.0,0.00013698,2]
[347178745,1735552240908,-548.73,0.00013698,2]
[347178746,1735552240917,-500.0,0.00013698,2]
[347178747,1735552240927,-500.0,0.00013698,2]
[347178748,1735552240936,-514.23744994,0.00013698,2]
[347178749,1735552240945,-500.0,0.00013698,2]
[347178750,1735552240954,-511.75494534,0.00013698,2]
[347178751,1735552240963,-500.0,0.00013698,2]
[347178752,1735552240972,-500.0,0.00013698,2]
[347178753,1735552240982,-500.0,0.00013698,2]
[347178754,1735552240992,-500.0,0.00013698,2]
[347178755,1735552241001,-500.0,0.00013698,2]
[347178756,1735552241010,-652.93,0.00013698,2]
[347178757,1735552241020,-503.28584641,0.00013698,2]
[347178758,1735552241029,-500.0,0.00013698,2]
[347178759,1735552241038,-500.0,0.00013698,2]
[347178760,1735552241047,-500.0,0.00013698,2]
[347178761,1735552241056,-500.0,0.00013698,2]
[347178762,1735552241065,-500.0,0.00013698,2]
[347178763,1735552241075,-505.53708834,0.00013698,2]
[347178764,1735552241084,-500.0,0.00013698,2]
[347178765,1735552241093,-500.0,0.00013698,2]
[347178766,1735552241102,-500.0,0.00013698,2]
[347178767,1735552241111,-500.75056128,0.00013698,2]
[347178768,1735552241121,-500.0,0.00013698,2]
[347178769,1735552241130,-503.27952188,0.00013698,2]
[347178770,1735552241141,-500.69984828,0.00013698,2]
[347178771,1735552241150,-502.48311314,0.00013698,2]
[347178772,1735552241159,-507.71662631,0.00013698,2]
[347178773,1735552241168,-500.70184494,0.00013698,2]
[347178774,1735552241177,-222.87256645,0.00013698,2]
[347178775,1735552241186,-502.64375839,0.00013698,2]
[347178776,1735552241196,-500.0,0.00013698,2]
[347178777,1735552241205,-500.0,0.00013698,2]
[347178778,1735552241214,-503.08068191,0.00013698,2]
[347178779,1735552241224,-501.00999579,0.00013698,2]
[347178780,1735552241233,-500.0,0.00013698,2]
[347178781,1735552241243,-500.0,0.00013698,2]
[347178782,1735552241406,-500.0,0.00013698,2]
[347178783,1735552241418,-854.51,0.00013698,2]
[347178784,1735552241428,-500.0,0.00013698,2]
[347178785,1735552241438,-500.0,0.00013698,2]
[347178786,1735552241448,-501.17858389,0.00013698,2]
[347178787,1735552241457,-503.60767593,0.00013698,2]
[347178788,1735552241466,-500.0,0.00013698,2]
[347178789,1735552241476,-500.0,0.00013698,2]
[347178790,1735552241485,-500.0,0.00013698,2]
[347178791,1735552241494,-862.91,0.00013698,2]
[347178792,1735552241503,-500.0,0.00013698,2]
[347178793,1735552241512,-500.0,0.00013698,2]
[347178794,1735552241521,-500.0,0.00013698,2]
[347178795,1735552241531,-500.0,0.00013698,2]
[347178796,1735552241540,-500.0,0.00013698,2]
[347178797,1735552241549,-503.5803833,0.00013698,2]
[347178798,1735552241558,-500.0,0.00013698,2]
[347178799,1735552241567,-628.66,0.00013698,2]
[347178800,1735552241576,-500.0,0.00013698,2]
[347178801,1735552241586,-500.0,0.00013698,2]
[347178802,1735552241595,-500.0,0.00013698,2]
[347178803,1735552241604,-501.35725774,0.00013698,2]
[347178804,1735552241614,-500.0,0.00013698,2]
[347178805,1735552241623,-500.0,0.00013698,2]
[347178806,1735552241633,-500.0,0.00013698,2]
[347178807,1735552241643,-508.92106461,0.00013698,2]
[347178808,1735552241653,-780.48,0.00013698,2]
[347178809,1735552241662,-500.0,0.00013698,2]
[347178810,1735552241671,-500.0,0.00013698,2]
[347178811,1735552241680,-500.0,0.00013698,2]
[347178812,1735552241690,-502.28026498,0.00013698,2]
[347178813,1735552241699,-501.69516029,0.00013698,2]
[347178814,1735552241708,-500.0,0.00013698,2]
[347178815,1735552241718,-500.0,0.00013698,2]
[347178816,1735552241728,-500.0,0.00013698,2]
[347178817,1735552241737,-504.55179181,0.00013698,2]
[347178818,1735552241747,-500.0,0.00013698,2]
[347178819,1735552241756,-503.34738417,0.00013698,2]
[347178820,1735552241765,-545.47702374,0.00013698,2]
[347178821,1735552241775,-915.62,0.00013698,2]
[347178822,1735552241784,-721.79,0.00013698,2]
[347178823,1735552241794,-500.0,0.00013698,2]
[347178824,1735552241803,-500.0,0.00013698,2]
[347178825,1735552241812,-500.0,0.00013698,2]
[347178826,1735552241823,-500.0,0.00013698,2]
[347178827,1735552241833,-501.82715581,0.00013698,2]
[347178828,1735552241842,-503.52158553,0.00013698,2]
[347178829,1735552241851,-1192.09,0.00013698,2]
[347178830,1735552241861,-500.0,0.00013698,2]
[347178831,1735552241871,-500.0,0.00013698,2]
[347178832,1735552241880,-500.0,0.00013698,2]
[347178833,1735552241892,-508.38485578,0.00013698,2]
[347178834,1735552241901,-689.56,0.00013698,2]
[347178835,1735552241911,-553.43,0.00013698,2]
[347178836,1735552241920,-500.0,0.00013698,2]
[347178837,1735552241929,-500.0,0.00013698,2]
[347178838,1735552241938,-502.31572578,0.00013698,2]
[347178839,1735552241947,-500.0,0.00013698,2]
[347178840,1735552241956,-500.0,0.00013698,2]
[347178841,1735552241965,-506.00643522,0.00013698,2]
[347178842,1735552241975,-500.0,0.00013698,2]
[347178843,1735552241984,-886.02,0.00013698,2]
[347178844,1735552241994,-505.35878125,0.00013698,2]
[347178845,1735552242003,-503.83176222,0.00013698,2]
[347178846,1735552242012,-500.0,0.00013698,2]
[347178847,1735552242022,-501.92566839,0.00013698,2]
[347178848,1735552242031,-502.41882287,0.00013698,2]
[347178849,1735552242040,-500.0,0.00013698,2]
[347178850,1735552242050,-500.0,0.00013698,2]
[347178851,1735552242059,-504.44454543,0.00013698,2]
[347178852,1735552242068,-500.0,0.00013698,2]
[347178853,1735552242077,-500.0,0.00013698,2]
[347178854,1735552242086,-500.0,0.00013698,2]
[347178855,1735552242095,-501.17085274,0.00013698,2]
[347178856,1735552242105,-500.0,0.00013698,2]
[347178857,1735552242114,-399.31811381,0.00013698,2]
[347178858,1735552242123,-5063.61204831,0.00013698,2]
[347178859,1735552242132,-500.0,0.00013698,2]
[347178860,1735552242142,-500.0,0.00013698,2]
[347178861,1735552242152,-713.46,0.00013698,2]
[347178862,1735552242162,-502.12499258,0.00013698,2]
[347178863,1735552242171,-500.0,0.00013698,2]
[347178864,1735552242180,-500.0,0.00013698,2]
[347178865,1735552242190,-500.0,0.00013698,2]
[347178866,1735552242199,-500.0,0.00013698,2]
[347178867,1735552242208,-500.59717283,0.00013698,2]
[347178868,1735552242218,-500.0,0.00013698,2]
[347178869,1735552242227,-505.24717577,0.00013698,2]
[347178870,1735552242236,-220.81381208,0.00013698,2]
[347178871,1735552242245,-503.56287957,0.00013698,2]
[347178872,1735552242255,-505.31268541,0.00013698,2]
[347178873,1735552242264,-1300.12,0.00013698,2]
[347178874,1735552242278,-500.0,0.00013698,2]
[347178875,1735552242287,-500.0,0.00013698,2]
[347178876,1735552242297,-514.43188368,0.00013698,2]
[347178877,1735552242306,-503.84272251,0.00013698,2]
[347178878,1735552242315,-500.0,0.00013698,2]
[347178879,1735552242324,-646.68,0.00013698,2]
[347178880,1735552242333,-747.9,0.00013698,2]
[347178881,1735552242343,-509.34728707,0.00013698,2]
[347178882,1735552242355,-510.3732393,0.00013698,2]
[347178883,1735552242364,-1112.77,0.00013698,2]
[347178884,1735552242374,-502.75364244,0.00013698,2]
[347178885,1735552242383,-438.24151779,0.00013698,2]
[347178886,1735552242394,-2201.28,0.00013698,2]
[347178887,1735552242404,-500.0,0.00013698,2]
[347178888,1735552242413,-511.17149724,0.00013698,2]
[347178889,1735552242423,-500.0,0.00013698,2]
[347178890,1735552242432,-500.0,0.00013698,2]
[347178891,1735552242441,-946.31,0.00013698,2]
[347178892,1735552242451,-500.57297429,0.00013698,2]
[347178893,1735552242461,-500.0,0.00013698,2]
[347178894,1735552242471,-1485.25,0.00013698,2]
[347178895,1735552242480,-500.73982058,0.00013698,2]
[347178896,1735552242490,-525.1196164,0.00013698,2]
[347178897,1735552242499,-502.54957044,0.00013698,2]
[347178898,1735552242509,-500.0,0.00013698,2]
[347178899,1735552242518,-500.0,0.00013698,2]
[347178900,1735552242528,-500.0,0.00013698,2]
[347178901,1735552242538,-625.99749933,0.00013698,2]
[347178902,1735552242547,-500.0,0.00013698,2]
[347178903,1735552242556,-502.51466044,0.00013698,2]
[347178904,1735552242566,-500.0,0.00013698,2]
[347178905,1735552242575,-586.18443852,0.00013698,2]
[347178906,1735552242585,-500.0,0.00013698,2]
[347178907,1735552242594,-501.95950456,0.00013698,2]
[347178908,1735552242603,-500.0,0.00013698,2]
[347178909,1735552242612,-504.08087931,0.00013698,2]
[347178910,1735552242622,-501.53457361,0.00013698,2]
[347178911,1735552242631,-500.0,0.00013698,2]
[347178912,1735552242641,-500.0,0.00013698,2]
[347178913,1735552242651,-502.09595401,0.00013698,2]
[347178914,1735552242660,-500.0,0.00013698,2]
[347178915,1735552242669,-989.56,0.00013698,2]
[347178916,1735552242679,-500.0,0.00013698,2]
[347178917,1735552242688,-503.79006821,0.00013698,2]
[347178918,1735552242698,-1511.44,0.00013698,2]
[347178919,1735552242707,-500.0,0.00013698,2]
[347178920,1735552242715,-500.0,0.00013698,2]
[347178921,1735552242724,-502.83525439,0.00013698,2]
[347178922,1735552242734,-500.0,0.00013698,2]
[347178923,1735552242742,-523.25794444,0.00013698,2]
[347178924,1735552242751,-500.0,0.00013698,2]
[347178925,1735552242760,-500.0,0.00013698,2]
[347178926,1735552242769,-500.0,0.00013698,2]
[347178927,1735552242778,-508.198254,0.00013698,2]
[347178928,1735552242787,-1364.7,0.00013698,2]
[347178929,1735552242796,-500.0,0.00013698,2]
[347178930,1735552242806,-500.0,0.00013698,2]
[347178931,1735552242815,-500.0,0.00013698,2]
[347178932,1735552242824,-509.29207725,0.00013698,2]
[347178933,1735552242834,-501.70372156,0.00013698,2]
[347178934,1735552242843,-500.0,0.00013698,2]
[347178935,1735552242852,-501.1230332,0.00013698,2]
[347178936,1735552242861,-353.1280861,0.00013698,2]
[347178937,1735552242871,-837.14,0.00013698,2]
[347178938,1735552242880,-500.0,0.00013698,2]
[347178939,1735552242891,-1333.45,0.00013698,2]
[347178940,1735552242902,-500.0,0.00013698,2]
[347178941,1735552242911,-500.0,0.00013698,2]
[347178942,1735552242921,-1811.28,0.00013698,2]
[347178943,1735552242931,-463.49596546,0.00013698,2]
[347178944,1735552242940,-500.0,0.00013698,2]
[347178945,1735552242950,-591.94,0.00013698,2]
[347178946,1735552242959,-502.92697488,0.00013698,2]
[347178947,1735552242969,-500.0,0.00013698,2]
[347178948,1735552242978,-500.0,0.00013698,2]
[347178949,1735552242987,-504.92325947,0.00013698,2]
[347178950,1735552242997,-1066.36,0.00013698,2]
[347178951,1735552243007,-1531.21,0.00013698,2]
[347178952,1735552243016,-502.05478913,0.00013698,2]
[347178953,1735552243026,-500.0,0.00013698,2]
[347178954,1735552243036,-500.0,0.00013698,2]
[347178955,1735552243045,-1130.62,0.00013698,2]
[347178957,1735552243055,-500.0,0.00013698,2]
[347178959,1735552243064,-2000.82,0.00013698,2]
[347178961,1735552243073,-500.0,0.00013698,2]
[347178963,1735552243083,-500.0,0.00013698,2]
[347178964,1735552243092,-500.0,0.00013698,2]
[347178965,1735552243102,-1004.83,0.00013698,2]
[347178966,1735552243112,-500.0,0.00013698,2]
[347178967,1735552243121,-503.18415332,0.00013698,2]
[347178968,1735552243130,-500.0,0.00013698,2]
[347178969,1735552243140,-500.0,0.00013698,2]
[347178970,1735552243150,-521.17,0.00013698,2]
[347178971,1735552243159,-502.58189472,0.00013698,2]
[347178972,1735552243169,-500.0,0.00013698,2]
[347178973,1735552243178,-500.0,0.00013698,2]
[347178974,1735552243188,-1434.78,0.00013698,2]
[347178975,1735552243197,-500.0,0.00013698,2]
[347178976,1735552243207,-1158.3,0.00013698,2]
[347178977,1735552243216,-511.27213088,0.00013698,2]
[347178978,1735552243225,-501.61759198,0.00013698,2]
[347178979,1735552243235,-501.94901831,0.00013698,2]
[347178980,1735552243244,-984.97,0.00013698,2]
[347178981,1735552243254,-534.13,0.00013698,2]
[347178982,1735552243263,-635.38225456,0.00013698,2]
[347178983,1735552243275,-500.0,0.00013698,2]
[347178984,1735552243284,-500.0,0.00013698,2]
[347178986,1735552243293,-1272.2,0.00013698,2]
[347178987,1735552243302,-612.71,0.00013698,2]
[347178988,1735552243311,-501.3854147,0.00013698,2]
[347178989,1735552243320,-501.55807031,0.00013698,2]
[347178990,1735552243330,-500.0,0.00013698,2]
[347178991,1735552243339,-500.0,0.00013698,2]
[347178992,1735552243348,-1572.25,0.00013698,2]
[347178993,1735552243358,-361.41435101,0.00013698,2]
[347178994,1735552243367,-1086.14,0.00013698,2]
[347178995,1735552243376,-500.0,0.00013698,2]
[347178996,1735552243385,-500.0,0.00013698,2]
[347178997,1735552243396,-507.38707007,0.00013698,2]
[347178998,1735552243406,-500.0,0.00013698,2]
[347178999,1735552243415,-500.0,0.00013698,2]
[347179000,1735552243425,-500.0,0.00013698,2]
[347179001,1735552243434,-730.78,0.00013698,2]
[347179002,1735552243443,-1004.19,0.00013698,2]
[347179003,1735552243452,-500.0,0.00013698,2]
[347179004,1735552243461,-1497.73,0.00013698,2]
[347179005,1735552243470,-789.13,0.00013698,2]
[347179006,1735552243479,-506.67371317,0.00013698,2]
[347179007,1735552243488,-854.9,0.00013698,2]
[347179008,1735552243497,-500.0,0.00013698,2]
[347179009,1735552243507,-502.2009826,0.00013698,2]
[347179010,1735552243516,-500.0,0.00013698,2]
[347179011,1735552243525,-1160.55,0.00013698,2]
[347179012,1735552243535,-796.81,0.00013698,2]
[347179013,1735552243543,-1287.71,0.00013698,2]
[347179014,1735552243552,-1807.47,0.00013698,2]
[347179015,1735552243561,-506.15848434,0.00013698,2]
[347179016,1735552243570,-500.0,0.00013698,2]
[347179017,1735552243579,-500.0,0.00013698,2]
[347179019,1735552243588,-1522.7,0.00013698,2]
[347179021,1735552243597,-500.0,0.00013698,2]
[347179023,1735552243607,-500.0,0.00013698,2]
[347179025,1735552243616,-500.0,0.00013698,2]
[347179026,1735552243624,-573.13,0.00013698,2]
[347179027,1735552243633,-502.06821709,0.00013698,2]
[347179028,1735552243643,-1311.28,0.00013698,2]
[347179029,1735552243652,-1817.31,0.00013698,2]
[347179030,1735552243662,-500.94813009,0.00013698,2]
[347179031,1735552243671,-500.0,0.00013698,2]
[347179032,1735552243680,-500.0,0.00013698,2]
[347179033,1735552243689,-500.0,0.00013698,2]
[347179035,1735552243698,-900.6,0.00013698,2]
[347179037,1735552243707,-826.18,0.00013698,2]
[347179039,1735552243716,-1911.42,0.00013698,2]
[347179064,1735552243912,-500.0,0.00013698,2]
[347179067,1735552243922,-500.0,0.00013698,2]
[347179069,1735552243932,-500.0,0.00013698,2]
[347179070,1735552243941,-500.0,0.00013698,2]
[347179072,1735552243951,-500.0,0.00013698,2]
[347179074,1735552243959,-916.64,0.00013698,2]
[347179076,1735552243968,-507.44332357,0.00013698,2]
[347179079,1735552243978,-500.0,0.00013698,2]
[347179080,1735552243987,-500.0,0.00013698,2]
[347179082,1735552243996,-506.81676012,0.00013698,2]
[347179084,1735552244006,-500.0,0.00013698,2]
[347179086,1735552244015,-720.2,0.00013698,2]
[347179088,1735552244024,-500.0,0.00013698,2]
[347179090,1735552244034,-720.2,0.00013698,2]
[347179092,1735552244043,-720.2,0.00013698,2]
[347179094,1735552244052,-720.2,0.00013698,2]
[347179096,1735552244061,-500.0,0.00013698,2]
[347179098,1735552244071,-720.2,0.00013698,2]
[347179100,1735552244080,-720.2,0.00013698,2]
[347179102,1735552244089,-500.0,0.00013698,2]
[347179104,1735552244099,-542.05,0.00013698,2]
[347179106,1735552244109,-720.2,0.00013698,2]
[347179108,1735552244118,-720.2,0.00013698,2]
[347179109,1735552244127,-720.2,0.00013698,2]
[347179110,1735552244136,-720.2,0.00013698,2]
[347179111,1735552244146,-720.2,0.00013698,2]
[347179112,1735552244156,-720.2,0.00013698,2]
[347179113,1735552244165,-720.2,0.00013698,2]
[347179114,1735552244174,-861.59,0.00013698,2]
[347179115,1735552244183,-720.2,0.00013698,2]
[347179116,1735552244193,-504.77827331,0.00013698,2]
[347179117,1735552244202,-720.2,0.00013698,2]
[347179118,1735552244212,-1050.99,0.00013698,2]
[347179119,1735552244221,-720.2,0.00013698,2]
[347179120,1735552244231,-500.0,0.00013698,2]
[347179121,1735552244240,-720.2,0.00013698,2]
[347179122,1735552244249,-720.2,0.00013698,2]
[347179123,1735552244258,-500.0,0.00013698,2]
[347179124,1735552244268,-720.2,0.00013698,2]
[347179125,1735552244281,-720.2,0.00013698,2]
[347179126,1735552244291,-720.2,0.00013698,2]
[347179127,1735552244300,-720.2,0.00013698,2]
[347179128,1735552244309,-720.2,0.00013698,2]
[347179129,1735552244320,-720.29845197,0.00013698,2]
[347179130,1735552244329,-535.8,0.00013698,2]
[347179131,1735552244339,-1360.37,0.00013698,2]
[347179132,1735552244349,-500.0,0.00013698,2]
[347179133,1735552244359,-500.0,0.00013698,2]
[347179134,1735552244369,-500.0,0.00013698,2]
[347179135,1735552244379,-505.21,0.00013698,2]
[347179136,1735552244388,-521.33,0.00013698,2]
[347179137,1735552244398,-516.92,0.00013698,2]
[347179138,1735552244407,-500.0,0.00013698,2]
[347179139,1735552244416,-934.82,0.00013698,2]
[347179140,1735552244426,-500.0,0.00013698,2]
[347179141,1735552244436,-500.0,0.00013698,2]
[347179142,1735552244445,-537.37,0.00013698,2]
[347179143,1735552244454,-500.0,0.00013698,2]
[347179144,1735552244464,-500.45254308,0.00013698,2]
[347179145,1735552244474,-544.45,0.00013698,2]
[347179146,1735552244484,-1895.92,0.00013698,2]
[347179147,1735552244494,-1468.91,0.00013698,2]
[347179148,1735552244504,-500.0,0.00013698,2]
[347179149,1735552244514,-503.14063417,0.00013698,2]
[347179150,1735552244524,-556.28,0.00013698,2]
[347179151,1735552244534,-505.21730909,0.00013698,2]
[347179152,1735552244543,-500.0,0.00013698,2]
[347179153,1735552244553,-500.0,0.00013698,2]
[347179154,1735552244564,-500.0,0.00013698,2]
[347179155,1735552244575,-1255.58,0.00013698,2]
[347179156,1735552244586,-500.0,0.00013698,2]
[347179157,1735552244597,-889.87,0.00013698,2]
[347179158,1735552244608,-182.52557684,0.00013698,2]
[347179159,1735552244618,-500.0,0.00013698,2]
[347179160,1735552244628,-759.42,0.00013698,2]
[347179161,1735552244637,-500.0,0.00013698,2]
[347179162,1735552244649,-1721.61,0.00013698,2]
[347179163,1735552244660,-500.0,0.00013698,2]
[347179164,1735552244669,-500.0,0.00013698,2]
[347179165,1735552244679,-503.06742524,0.00013698,2]
[347179166,1735552244688,-1046.84,0.00013698,2]
[347179167,1735552244698,-830.8,0.00013698,2]
[347179168,1735552244707,-503.1254695,0.00013698,2]
[347179169,1735552244717,-509.08199914,0.00013698,2]
[347179170,1735552244727,-1689.62,0.00013698,2]
[347179171,1735552244736,-500.0,0.00013698,2]
[347179172,1735552244745,-500.0,0.00013698,2]
[347179173,1735552244754,-500.0,0.00013698,2]
[347179174,1735552244764,-500.0,0.00013698,2]
[347179175,1735552244773,-500.0,0.00013698,2]
[347179176,1735552244782,-500.0,0.00013698,2]
[347179177,1735552244791,-500.0,0.00013698,2]
[347179178,1735552244801,-846.26,0.00013698,2]
[347179179,1735552244810,-500.0,0.00013698,2]
[347179180,1735552244819,-500.0,0.00013698,2]
[347179181,1735552244829,-536.25900838,0.00013698,2]
[347179182,1735552244838,-500.0,0.00013698,2]
[347179183,1735552244847,-984.16,0.00013698,2]
[347179184,1735552244857,-501.51830159,0.00013698,2]
[347179185,1735552244866,-1157.2,0.00013698,2]
[347179186,1735552244875,-671.45,0.00013698,2]
[347179187,1735552244884,-536.29091314,0.00013698,2]
[347179188,1735552244896,-500.0,0.00013698,2]
[347179189,1735552244905,-953.22,0.00013698,2]
[347179190,1735552244914,-616.88,0.00013698,2]
[347179191,1735552244923,-500.0,0.00013698,2]
[347179192,1735552244932,-517.61267049,0.00013698,2]
[347179193,1735552244942,-501.49338005,0.00013698,2]
[347179194,1735552244951,-500.0,0.00013698,2]
[347179195,1735552244960,-720.63,0.00013698,2]
[347179196,1735552244969,-720.63,0.00013698,2]
[347179197,1735552244978,-720.63,0.00013698,2]
[347179198,1735552244987,-720.63,0.00013698,2]
[347179199,1735552244996,-500.0,0.00013698,2]
[347179200,1735552245005,-720.63,0.00013698,2]
[347179201,1735552245015,-720.63,0.00013698,2]
[347179202,1735552245024,-720.63,0.00013698,2]
[347179203,1735552245034,-720.63,0.00013698,2]
[347179204,1735552245044,-500.0,0.00013698,2]
[347179205,1735552245053,-720.63,0.00013698,2]
[347179206,1735552245062,-720.63,0.00013698,2]
[347179207,1735552245071,-720.63,0.00013698,2]
[347179208,1735552245080,-720.63,0.00013698,2]
[347179209,1735552245089,-720.63,0.00013698,2]
[347179210,1735552245099,-720.63,0.00013698,2]
[347179211,1735552245108,-720.63,0.00013698,2]
[347179212,1735552245117,-1861.33,0.00013698,2]
[347179213,1735552245127,-720.63,0.00013698,2]
[347179214,1735552245137,-720.63,0.00013698,2]
[347179215,1735552245147,-720.63,0.00013698,2]
[347179216,1735552245157,-720.63,0.00013698,2]
[347179217,1735552245166,-720.63,0.00013698,2]
[347179218,1735552245176,-720.63,0.00013698,2]
[347179219,1735552245185,-720.63,0.00013698,2]
[347179220,1735552245195,-500.0,0.00013698,2]
[347179221,1735552245204,-720.63,0.00013698,2]
[347179222,1735552245214,-720.67447286,0.00013698,2]
[347179223,1735552245224,-500.0,0.00013698,2]
[347179224,1735552245234,-552.39,0.00013698,2]
[347179225,1735552245244,-1791.79,0.00013698,2]
[347179226,1735552245253,-1109.89,0.00013698,2]
[347179227,1735552245263,-500.0,0.00013698,2]
[347179228,1735552245276,-500.0,0.00013698,2]
[347179229,1735552245286,-500.0,0.00013698,2]
[347179230,1735552245295,-500.0,0.00013698,2]
[347179231,1735552245305,-500.0,0.00013698,2]
[347179232,1735552245315,-500.0,0.00013698,2]
[347179233,1735552245324,-500.0,0.00013698,2]
[347179234,1735552245334,-634.32,0.00013698,2]
[347179235,1735552245343,-500.0,0.00013698,2]
[347179236,1735552245352,-1182.84,0.00013698,2]
[347179237,1735552245362,-500.0,0.00013698,2]
[347179238,1735552245371,-1014.30646094,0.00013698,2]
[347179239,1735552245380,-500.0,0.00013698,2]
[347179240,1735552245390,-654.35,0.00013698,2]
[347179241,1735552245400,-502.55,0.00013698,2]
[347179242,1735552245410,-500.0,0.00013698,2]
[347179243,1735552245419,-500.0,0.00013698,2]
[347179244,1735552245429,-803.91,0.00013698,2]
[347179245,1735552245438,-408.31592585,0.00013698,2]
[347179246,1735552245447,-791.76,0.00013698,2]
[347179247,1735552245457,-1441.95,0.00013698,2]
[347179248,1735552245466,-1058.26,0.00013698,2]
[347179249,1735552245475,-752.49,0.00013698,2]
[347179250,1735552245484,-503.32372118,0.00013698,2]
[347179251,1735552245493,-500.0,0.00013698,2]
[347179252,1735552245503,-500.0,0.00013698,2]
[347179253,1735552245512,-2121.21,0.00013698,2]
[347179254,1735552245521,-590.96,0.00013698,2]
[347179255,1735552245531,-503.94955904,0.00013698,2]
[347179256,1735552245540,-1994.61,0.00013698,2]
[347179257,1735552245549,-597.65,0.00013698,2]
[347179258,1735552245558,-500.76796728,0.00013698,2]
[347179259,1735552245567,-1560.13,0.00013698,2]
[347179260,1735552245578,-716.46,0.00013698,2]
[347179261,1735552245587,-500.0,0.00013698,2]
[347179262,1735552245596,-1171.47,0.00013698,2]
[347179263,1735552245606,-525.18176719,0.00013698,2]
[347179264,1735552245615,-500.0,0.00013698,2]
[347179265,1735552245625,-2232.14,0.00013698,2]
[347179266,1735552245635,-795.84,0.00013698,2]
[347179267,1735552245645,-665.25,0.00013698,2]
[347179268,1735552245655,-500.0,0.00013698,2]
[347179269,1735552245667,-1310.78,0.00013698,2]
[347179270,1735552245677,-924.03,0.00013698,2]
[347179271,1735552245687,-500.0,0.00013698,2]
[347179272,1735552245696,-1112.52,0.00013698,2]
[347179273,1735552245708,-500.0,0.00013698,2]
[347179274,1735552245718,-500.0,0.00013698,2]
[347179275,1735552245727,-500.0,0.00013698,2]
[347179276,1735552245736,-500.62474612,0.00013698,2]
[347179277,1735552245746,-500.0,0.00013698,2]
[347179278,1735552245755,-500.0,0.00013698,2]
[347179279,1735552245764,-1261.84,0.00013698,2]
[347179280,1735552245774,-642.31192734,0.00013698,2]
[347179281,1735552245783,-2164.05,0.00013698,2]
[347179282,1735552245793,-500.0,0.00013698,2]